{"text_format":"1","workbook":"xlsx","n_sheets":1,"sheets":["primer"],"not_rendered":{"charts":0,"images":0,"macros":1,"external_links":0,"defined_names":0,"comments":0,"pivot_tables":0},"unopened":[],"bounds":{"document_bytes":16777216,"sheet_cells":100000,"rows_first":2000,"rows_last":500,"rows_between":2000,"halvings":0,"cell_chars":16384,"cell_head_chars":4096},"cells_cut":0,"cells_raw":0,"read":"whole","date_system":"1900"}

{"sheet":"primer","index":0,"n_rows":21,"n_cols":39,"rows_kept":21,"cut":false,"hidden":false,"merged":[]}
["name : Название","vendor : Производитель","image : Иллюстрация","article : Артикул","folder : Категория","body : Описание",null,"price : Цена","Мощность (охлаждение)","Мощность (обогрев)","Класс энергоэффективности","Вентиляция","Ток (охлаждение)","Ток (обогрев)","Подключение","Уровень шума","Хладагент","Размеры прибора","Размеры упаковки","Вес нетто","Вес брутто","Вес нетто, кг","Вес брутто, кг","Объём упаковки товара, м","Длина упаковки товара, м","Ширина упаковки товара, м","Высота упаковки товара, м","Сайт производителя:","Потребляемая мощность (охлаждение)","Класс защиты (электричество)","Степень защиты","Размер (высота)","Размер (ширина)","Размер (глубина)","Вес","Количество на палетте упаковки товара, шт","Количество в упаковке упаковки товара, шт","Потребляемая мощность (нагрев)","Гарантия"]
["Мобильный кондиционер Ballu BPHS-09H серии Platinum","Ballu","https://линии-тока.рф/d/1913920/d/22199_26043.png",22199,"Мобильные кондиционеры BALLU серии Platinum","<table width=\"100%\"border=\"0\"cellspacing=\"0\"cellpadding=\"4\"class=\"border\"><tr class=\"t0\"><td width=\"40%\">Мощность (охлаждение)</td><td><b>2,6 кВт</b></td></tr><tr class=\"t1\"><td width=\"40%\">Мощность (обогрев)</td><td><b>2,1 кВт</b></td></tr><tr class=\"t0\"><td width=\"40%\">Класс энергоэффективности</td><td><b>A</b></td></tr><tr class=\"t1\"><td width=\"40%\">Вентиляция</td><td><b>290 м3/ч</b></td></tr><tr class=\"t0\"><td width=\"40%\">Ток (охлаждение)</td><td><b>4,5 А</b></td></tr><tr class=\"t1\"><td width=\"40%\">Ток (обогрев)</td><td><b>9,7 А</b></td></tr><tr class=\"t0\"><td width=\"40%\">Подключение</td><td><b>220-240В, 50Гц, 1фаза</b></td></tr><tr class=\"t1\"><td width=\"40%\">Уровень шума</td><td><b>45-52 дБ</b></td></tr><tr class=\"t0\"><td width=\"40%\">Хладагент</td><td><b>R410a</b></td></tr><tr class=\"t1\"><td width=\"40%\">Размеры прибора</td><td><b>430x695x325 мм</b></td></tr><tr class=\"t0\"><td width=\"40%\">Размеры упаковки</td><td><b>480x880x380 мм</b></td></tr><tr class=\"t1\"><td width=\"40%\">Вес нетто</td><td><b>30 кг</b></td></tr><tr class=\"t0\"><td width=\"40%\">Вес брутто</td><td><b>35 кг</b></td></tr><tr class=\"t1\"><td width=\"40%\">Вес нетто, кг</td><td><b>30</b></td></tr><tr class=\"t0\"><td width=\"40%\">Вес брутто, кг</td><td><b>34</b></td></tr><tr class=\"t1\"><td width=\"40%\">Объём упаковки товара, м<sup>3</sup></td><td><b>0,160512</b></td></tr><tr class=\"t0\"><td width=\"40%\">Длина упаковки товара, м</td><td><b>0,38</b></td></tr><tr class=\"t1\"><td width=\"40%\">Ширина упаковки товара, м</td><td><b>0,48</b></td></tr><tr class=\"t0\"><td width=\"40%\">Высота упаковки товара, м</td><td><b>0,88</b></td></tr><tr class=\"t1\"><td width=\"40%\">Сайт производителя:</td><td><a href=\"http://www.ballu.ru/\">Ballu</a></td></tr></table>",null,21490,{"$f":"IvanPavlov($F2,I$1)","v":"2,6 кВт"},{"$f":"IvanPavlov($F2,J$1)","v":"2,1 кВт"},"A","290 м3/ч","4,5 А","9,7 А","220-240В, 50Гц, 1фаза","45-52 дБ","R410a","430x695x325 мм","480x880x380 мм","30 кг","35 кг","30","34","","0,38","0,48","0,88","","","","","","","","","","","",""]
["Мобильный кондиционер Ballu BPHS-12H серии Platinum","Ballu","https://линии-тока.рф/d/1913920/d/22199_26043.png",22200,"Мобильные кондиционеры BALLU серии Platinum","<table width=\"100%\"border=\"0\"cellspacing=\"0\"cellpadding=\"4\"class=\"border\"><tr class=\"t0\"><td width=\"40%\">Мощность (охлаждение)</td><td><b>3,5 кВт</b></td></tr><tr class=\"t1\"><td width=\"40%\">Мощность (обогрев)</td><td><b>2,0 кВт</b></td></tr><tr class=\"t0\"><td width=\"40%\">Класс энергоэффективности</td><td><b>A</b></td></tr><tr class=\"t1\"><td width=\"40%\">Вентиляция</td><td><b>380 м3/ч</b></td></tr><tr class=\"t0\"><td width=\"40%\">Ток (охлаждение)</td><td><b>1,33 А</b></td></tr><tr class=\"t1\"><td width=\"40%\">Ток (обогрев)</td><td><b>2,0 А</b></td></tr><tr class=\"t0\"><td width=\"40%\">Подключение</td><td><b>220-240В, 50Гц, 1фаза</b></td></tr><tr class=\"t1\"><td width=\"40%\">Уровень шума</td><td><b>50-54 дБ</b></td></tr><tr class=\"t0\"><td width=\"40%\">Хладагент</td><td><b>R410a</b></td></tr><tr class=\"t1\"><td width=\"40%\">Размеры прибора</td><td><b>439x754x360 мм</b></td></tr><tr class=\"t0\"><td width=\"40%\">Размеры упаковки</td><td><b>505x885x430 мм</b></td></tr><tr class=\"t1\"><td width=\"40%\">Вес нетто</td><td><b>34 кг</b></td></tr><tr class=\"t0\"><td width=\"40%\">Вес брутто</td><td><b>39 кг</b></td></tr><tr class=\"t1\"><td width=\"40%\">Вес нетто, кг</td><td><b>34</b></td></tr><tr class=\"t0\"><td width=\"40%\">Вес брутто, кг</td><td><b>39</b></td></tr><tr class=\"t1\"><td width=\"40%\">Объём упаковки товара, м<sup>3</sup></td><td><b>0,19217775</b></td></tr><tr class=\"t0\"><td width=\"40%\">Длина упаковки товара, м</td><td><b>0,505</b></td></tr><tr class=\"t1\"><td width=\"40%\">Ширина упаковки товара, м</td><td><b>0,43</b></td></tr><tr class=\"t0\"><td width=\"40%\">Высота упаковки товара, м</td><td><b>0,885</b></td></tr><tr class=\"t1\"><td width=\"40%\">Сайт производителя:</td><td><a href=\"http://www.ballu.ru/\">Ballu</a></td></tr></table>",null,25990,{"$f":"IvanPavlov($F3,I$1)","v":"3,5 кВт"},"2,0 кВт","A","380 м3/ч","1,33 А","2,0 А","220-240В, 50Гц, 1фаза","50-54 дБ","R410a","439x754x360 мм","505x885x430 мм","34 кг","39 кг","34","39","","0,505","0,43","0,885","","","","","","","","","","","",""]
["Кондиционер мобильный Ballu BPHS-14H","Ballu","https://линии-тока.рф/d/1913920/d/13960_5368.png",24394,"Мобильные кондиционеры BALLU серии Platinum","<table width=\"100%\"border=\"0\"cellspacing=\"0\"cellpadding=\"4\"class=\"border\"><tr class=\"t0\"><td width=\"40%\">Мощность (охлаждение)</td><td><b>4,1 кВт</b></td></tr><tr class=\"t1\"><td width=\"40%\">Мощность (обогрев)</td><td><b>3,5 кВт</b></td></tr><tr class=\"t0\"><td width=\"40%\">Класс энергоэффективности</td><td><b>A</b></td></tr><tr class=\"t1\"><td width=\"40%\">Вентиляция</td><td><b>300 м3/ч</b></td></tr><tr class=\"t0\"><td width=\"40%\">Ток (охлаждение)</td><td><b>1,3 А</b></td></tr><tr class=\"t1\"><td width=\"40%\">Ток (обогрев)</td><td><b>1,2 А</b></td></tr><tr class=\"t0\"><td width=\"40%\">Подключение</td><td><b>220-240~50</b></td></tr><tr class=\"t1\"><td width=\"40%\">Уровень шума</td><td><b>51-53 дБ</b></td></tr><tr class=\"t0\"><td width=\"40%\">Хладагент</td><td><b>R410a</b></td></tr><tr class=\"t1\"><td width=\"40%\">Размеры прибора</td><td><b>450х746х393 мм</b></td></tr><tr class=\"t0\"><td width=\"40%\">Размеры упаковки</td><td><b>475х870х450 мм</b></td></tr><tr class=\"t1\"><td width=\"40%\">Вес нетто</td><td><b>32 кг</b></td></tr><tr class=\"t0\"><td width=\"40%\">Вес брутто</td><td><b>36 кг</b></td></tr><tr class=\"t1\"><td width=\"40%\">Вес нетто, кг</td><td><b>32</b></td></tr><tr class=\"t0\"><td width=\"40%\">Вес брутто, кг</td><td><b>36</b></td></tr><tr class=\"t1\"><td width=\"40%\">Объём упаковки товара, м<sup>3</sup></td><td><b>0,1859625</b></td></tr><tr class=\"t0\"><td width=\"40%\">Длина упаковки товара, м</td><td><b>0,475</b></td></tr><tr class=\"t1\"><td width=\"40%\">Ширина упаковки товара, м</td><td><b>0,45</b></td></tr><tr class=\"t0\"><td width=\"40%\">Высота упаковки товара, м</td><td><b>0,87</b></td></tr><tr class=\"t1\"><td width=\"40%\">Сайт производителя:</td><td><a href=\"http://www.ballu.ru/\">Ballu</a></td></tr></table>",null,29990,"4,1 кВт","3,5 кВт","A","300 м3/ч","1,3 А","1,2 А","220-240~50","51-53 дБ","R410a","450х746х393 мм","475х870х450 мм","32 кг","36 кг","32","36","","0,475","0,45","0,87","","","","","","","","","","","",""]
["Кондиционер мобильный Ballu BPHS-16H","Ballu","https://линии-тока.рф/d/1913920/d/13960_5368.png",24393,"Мобильные кондиционеры BALLU серии Platinum","<table width=\"100%\"border=\"0\"cellspacing=\"0\"cellpadding=\"4\"class=\"border\"><tr class=\"t0\"><td width=\"40%\">Мощность (охлаждение)</td><td><b>4,7 кВт</b></td></tr><tr class=\"t1\"><td width=\"40%\">Мощность (обогрев)</td><td><b>3,8 кВт</b></td></tr><tr class=\"t0\"><td width=\"40%\">Класс энергоэффективности</td><td><b>A</b></td></tr><tr class=\"t1\"><td width=\"40%\">Вентиляция</td><td><b>420 м3/ч</b></td></tr><tr class=\"t0\"><td width=\"40%\">Ток (охлаждение)</td><td><b>1,4 А</b></td></tr><tr class=\"t1\"><td width=\"40%\">Ток (обогрев)</td><td><b>1,35 А</b></td></tr><tr class=\"t0\"><td width=\"40%\">Подключение</td><td><b>220-240~50</b></td></tr><tr class=\"t1\"><td width=\"40%\">Уровень шума</td><td><b>52-54 дБ</b></td></tr><tr class=\"t0\"><td width=\"40%\">Хладагент</td><td><b>R410a</b></td></tr><tr class=\"t1\"><td width=\"40%\">Размеры прибора</td><td><b>510х854х427 мм</b></td></tr><tr class=\"t0\"><td width=\"40%\">Размеры упаковки</td><td><b>545х1087х462 мм</b></td></tr><tr class=\"t1\"><td width=\"40%\">Вес нетто</td><td><b>35,5 кг</b></td></tr><tr class=\"t0\"><td width=\"40%\">Вес брутто</td><td><b>41,5 кг</b></td></tr><tr class=\"t1\"><td width=\"40%\">Вес нетто, кг</td><td><b>35,5</b></td></tr><tr class=\"t0\"><td width=\"40%\">Вес брутто, кг</td><td><b>41,5</b></td></tr><tr class=\"t1\"><td width=\"40%\">Объём упаковки товара, м<sup>3</sup></td><td><b>0,27369573</b></td></tr><tr class=\"t0\"><td width=\"40%\">Длина упаковки товара, м</td><td><b>0,545</b></td></tr><tr class=\"t1\"><td width=\"40%\">Ширина упаковки товара, м</td><td><b>0,462</b></td></tr><tr class=\"t0\"><td width=\"40%\">Высота упаковки товара, м</td><td><b>1,087</b></td></tr><tr class=\"t1\"><td width=\"40%\">Сайт производителя:</td><td><a href=\"http://www.ballu.ru/\">Ballu</a></td></tr></table>",null,32990,"4,7 кВт","3,8 кВт","A","420 м3/ч","1,4 А","1,35 А","220-240~50","52-54 дБ","R410a","510х854х427 мм","545х1087х462 мм","35,5 кг","41,5 кг","35,5","41,5","","0,545","0,462","1,087","","","","","","","","","","","",""]
["Кондиционер мобильный Ballu BPAC-07 CE_17Y серии Smart E","Ballu","https://линии-тока.рф/d/1913920/d/13960_26205.png",30844,"Мобильные кондиционеры BALLU серии Smart","<table width=\"100%\"border=\"0\"cellspacing=\"0\"cellpadding=\"4\"class=\"border\"><tr class=\"t0\"><td width=\"40%\">Мощность (охлаждение)</td><td><b>2.05 кВт</b></td></tr><tr class=\"t1\"><td width=\"40%\">Потребляемая мощность (охлаждение)</td><td><b>0,785 кВт</b></td></tr><tr class=\"t0\"><td width=\"40%\">Класс энергоэффективности</td><td><b>A</b></td></tr><tr class=\"t1\"><td width=\"40%\">Вентиляция</td><td><b>330 м3/ч</b></td></tr><tr class=\"t0\"><td width=\"40%\">Класс защиты (электричество)</td><td><b>I класс</b></td></tr><tr class=\"t1\"><td width=\"40%\">Степень защиты</td><td><b>IPX0</b></td></tr><tr class=\"t0\"><td width=\"40%\">Ток (охлаждение)</td><td><b>3,4 А</b></td></tr><tr class=\"t1\"><td width=\"40%\">Подключение</td><td><b>220-240/50,1 В/Гц,Ф</b></td></tr><tr class=\"t0\"><td width=\"40%\">Уровень шума</td><td><b>45-51 дБ</b></td></tr><tr class=\"t1\"><td width=\"40%\">Хладагент</td><td><b>R410A</b></td></tr><tr class=\"t0\"><td width=\"40%\">Размер (высота)</td><td><b>700 мм</b></td></tr><tr class=\"t1\"><td width=\"40%\">Размер (ширина)</td><td><b>283 мм</b></td></tr><tr class=\"t0\"><td width=\"40%\">Размер (глубина)</td><td><b>506 мм</b></td></tr><tr class=\"t1\"><td width=\"40%\">Вес</td><td><b>25 кг</b></td></tr><tr class=\"t0\"><td width=\"40%\">Вес нетто, кг</td><td><b>27</b></td></tr><tr class=\"t1\"><td width=\"40%\">Вес брутто, кг</td><td><b>31</b></td></tr><tr class=\"t0\"><td width=\"40%\">Объём упаковки товара, м<sup>3</sup></td><td><b>0,158688</b></td></tr><tr class=\"t1\"><td width=\"40%\">Длина упаковки товара, м</td><td><b>0,57</b></td></tr><tr class=\"t0\"><td width=\"40%\">Ширина упаковки товара, м</td><td><b>0,32</b></td></tr><tr class=\"t1\"><td width=\"40%\">Высота упаковки товара, м</td><td><b>0,87</b></td></tr><tr class=\"t0\"><td width=\"40%\">Сайт производителя:</td><td><a href=\"http://www.ballu.ru/\">Ballu</a></td></tr></table>",null,15390,"2.05 кВт","","A","330 м3/ч","3,4 А","","220-240/50,1 В/Гц,Ф","45-51 дБ","R410A","","","","","27","31","","0,57","0,32","0,87","","0,785 кВт","I класс","IPX0","700 мм","283 мм","506 мм","25 кг","","","",""]
["Кондиционер мобильный Ballu BPAC-09 CE_17Y серии Smart E","Ballu","https://линии-тока.рф/d/1913920/d/13960_26205.png",30845,"Мобильные кондиционеры BALLU серии Smart","<table width=\"100%\"border=\"0\"cellspacing=\"0\"cellpadding=\"4\"class=\"border\"><tr class=\"t0\"><td width=\"40%\">Мощность (охлаждение)</td><td><b>2.64 кВт</b></td></tr><tr class=\"t1\"><td width=\"40%\">Потребляемая мощность (охлаждение)</td><td><b>0.95 кВт</b></td></tr><tr class=\"t0\"><td width=\"40%\">Класс энергоэффективности</td><td><b>A</b></td></tr><tr class=\"t1\"><td width=\"40%\">Вентиляция</td><td><b>330 м3/ч</b></td></tr><tr class=\"t0\"><td width=\"40%\">Класс защиты (электричество)</td><td><b>I класс</b></td></tr><tr class=\"t1\"><td width=\"40%\">Степень защиты</td><td><b>IPX0</b></td></tr><tr class=\"t0\"><td width=\"40%\">Ток (охлаждение)</td><td><b>4,1 А</b></td></tr><tr class=\"t1\"><td width=\"40%\">Подключение</td><td><b>220-240/50,1 В/Гц,Ф</b></td></tr><tr class=\"t0\"><td width=\"40%\">Уровень шума</td><td><b>45-51 дБ</b></td></tr><tr class=\"t1\"><td width=\"40%\">Хладагент</td><td><b>R410A</b></td></tr><tr class=\"t0\"><td width=\"40%\">Размер (высота)</td><td><b>700 мм</b></td></tr><tr class=\"t1\"><td width=\"40%\">Размер (ширина)</td><td><b>283 мм</b></td></tr><tr class=\"t0\"><td width=\"40%\">Размер (глубина)</td><td><b>506 мм</b></td></tr><tr class=\"t1\"><td width=\"40%\">Вес</td><td><b>26 кг</b></td></tr><tr class=\"t0\"><td width=\"40%\">Вес нетто, кг</td><td><b>27</b></td></tr><tr class=\"t1\"><td width=\"40%\">Вес брутто, кг</td><td><b>31</b></td></tr><tr class=\"t0\"><td width=\"40%\">Объём упаковки товара, м<sup>3</sup></td><td><b>0,1548</b></td></tr><tr class=\"t1\"><td width=\"40%\">Длина упаковки товара, м</td><td><b>0,5</b></td></tr><tr class=\"t0\"><td width=\"40%\">Ширина упаковки товара, м</td><td><b>0,36</b></td></tr><tr class=\"t1\"><td width=\"40%\">Высота упаковки товара, м</td><td><b>0,86</b></td></tr><tr class=\"t0\"><td width=\"40%\">Сайт производителя:</td><td><a href=\"http://www.ballu.ru/\">Ballu</a></td></tr></table>",null,17390,"2.64 кВт","","A","330 м3/ч","4,1 А","","220-240/50,1 В/Гц,Ф","45-51 дБ","R410A","","","","","27","31","","0,5","0,36","0,86","","0.95 кВт","I класс","IPX0","700 мм","283 мм","506 мм","26 кг","","",{"$f":"IvanPavlov($F7,AL$1)","v":""},""]
["Кондиционер мобильный Ballu BPAC-12 CE_17Y серии Smart E","Ballu","https://линии-тока.рф/d/1913920/d/13960_26205.png",30846,"Мобильные кондиционеры BALLU серии Smart","<table width=\"100%\"border=\"0\"cellspacing=\"0\"cellpadding=\"4\"class=\"border\"><tr class=\"t0\"><td width=\"40%\">Мощность (охлаждение)</td><td><b>3.22 кВт</b></td></tr><tr class=\"t1\"><td width=\"40%\">Потребляемая мощность (охлаждение)</td><td><b>1,25 кВт</b></td></tr><tr class=\"t0\"><td width=\"40%\">Класс энергоэффективности</td><td><b>A</b></td></tr><tr class=\"t1\"><td width=\"40%\">Вентиляция</td><td><b>330 м3/ч</b></td></tr><tr class=\"t0\"><td width=\"40%\">Класс защиты (электричество)</td><td><b>I класс</b></td></tr><tr class=\"t1\"><td width=\"40%\">Степень защиты</td><td><b>IPX0</b></td></tr><tr class=\"t0\"><td width=\"40%\">Ток (охлаждение)</td><td><b>5,5 А</b></td></tr><tr class=\"t1\"><td width=\"40%\">Подключение</td><td><b>220-240/50,1 В/Гц,Ф</b></td></tr><tr class=\"t0\"><td width=\"40%\">Уровень шума</td><td><b>45-51 дБ</b></td></tr><tr class=\"t1\"><td width=\"40%\">Хладагент</td><td><b>R410A</b></td></tr><tr class=\"t0\"><td width=\"40%\">Размер (высота)</td><td><b>700 мм</b></td></tr><tr class=\"t1\"><td width=\"40%\">Размер (ширина)</td><td><b>283 мм</b></td></tr><tr class=\"t0\"><td width=\"40%\">Размер (глубина)</td><td><b>506 мм</b></td></tr><tr class=\"t1\"><td width=\"40%\">Вес</td><td><b>28 кг</b></td></tr><tr class=\"t0\"><td width=\"40%\">Вес нетто, кг</td><td><b>27</b></td></tr><tr class=\"t1\"><td width=\"40%\">Вес брутто, кг</td><td><b>31</b></td></tr><tr class=\"t0\"><td width=\"40%\">Объём упаковки товара, м<sup>3</sup></td><td><b>0,160776</b></td></tr><tr class=\"t1\"><td width=\"40%\">Длина упаковки товара, м</td><td><b>0,33</b></td></tr><tr class=\"t0\"><td width=\"40%\">Ширина упаковки товара, м</td><td><b>0,56</b></td></tr><tr class=\"t1\"><td width=\"40%\">Высота упаковки товара, м</td><td><b>0,87</b></td></tr><tr class=\"t0\"><td width=\"40%\">Сайт производителя:</td><td><a href=\"http://www.ballu.ru/\">Ballu</a></td></tr></table>",null,20390,"3.22 кВт","","A","330 м3/ч","5,5 А","","220-240/50,1 В/Гц,Ф","45-51 дБ","R410A","","","","","27","31","","0,33","0,56","0,87","","1,25 кВт","I класс","IPX0","700 мм","283 мм","506 мм","28 кг","","","",""]
["Кондиционер мобильный Ballu BPAC-15 CE серии Smart Pro","Ballu","https://линии-тока.рф/d/1913920/d/13960_26205.png",30860,"Мобильные кондиционеры BALLU серии Smart","<table width=\"100%\"border=\"0\"cellspacing=\"0\"cellpadding=\"4\"class=\"border\"><tr class=\"t0\"><td width=\"40%\">Мощность (охлаждение)</td><td><b>4,4 кВт</b></td></tr><tr class=\"t1\"><td width=\"40%\">Класс энергоэффективности</td><td><b>A</b></td></tr><tr class=\"t0\"><td width=\"40%\">Вентиляция</td><td><b>450 м3/ч</b></td></tr><tr class=\"t1\"><td width=\"40%\">Подключение</td><td><b>220-240/50,1 В/Гц,Ф</b></td></tr><tr class=\"t0\"><td width=\"40%\">Уровень шума</td><td><b>50 дБ</b></td></tr><tr class=\"t1\"><td width=\"40%\">Вес нетто, кг</td><td><b>26</b></td></tr><tr class=\"t0\"><td width=\"40%\">Вес брутто, кг</td><td><b>30</b></td></tr><tr class=\"t1\"><td width=\"40%\">Объём упаковки товара, м<sup>3</sup></td><td><b>0,25585</b></td></tr><tr class=\"t0\"><td width=\"40%\">Длина упаковки товара, м</td><td><b>0,7</b></td></tr><tr class=\"t1\"><td width=\"40%\">Ширина упаковки товара, м</td><td><b>0,425</b></td></tr><tr class=\"t0\"><td width=\"40%\">Высота упаковки товара, м</td><td><b>0,86</b></td></tr><tr class=\"t1\"><td width=\"40%\">Количество на палетте упаковки товара, шт</td><td><b>1</b></td></tr><tr class=\"t0\"><td width=\"40%\">Количество в упаковке упаковки товара, шт</td><td><b>1</b></td></tr><tr class=\"t1\"><td width=\"40%\">Сайт производителя:</td><td><a href=\"http://www.ballu.ru/\">Ballu</a></td></tr></table>",null,28490,"4,4 кВт","","A","450 м3/ч","","","220-240/50,1 В/Гц,Ф","50 дБ","","","","","","26","30","","0,7","0,425","0,86","","","","","","","","","1","1","",""]
["Кондиционер мобильный Ballu BPAC-16 CE серии Smart Pro","Ballu","https://линии-тока.рф/d/1913920/d/13960_26205.png",30861,"Мобильные кондиционеры BALLU серии Smart","<table width=\"100%\"border=\"0\"cellspacing=\"0\"cellpadding=\"4\"class=\"border\"><tr class=\"t0\"><td width=\"40%\">Мощность (охлаждение)</td><td><b>4,6 кВт</b></td></tr><tr class=\"t1\"><td width=\"40%\">Класс энергоэффективности</td><td><b>A</b></td></tr><tr class=\"t0\"><td width=\"40%\">Вентиляция</td><td><b>520 м3/ч</b></td></tr><tr class=\"t1\"><td width=\"40%\">Подключение</td><td><b>220-240/50,1 В/Гц,Ф</b></td></tr><tr class=\"t0\"><td width=\"40%\">Уровень шума</td><td><b>52 дБ</b></td></tr><tr class=\"t1\"><td width=\"40%\">Вес нетто, кг</td><td><b>28</b></td></tr><tr class=\"t0\"><td width=\"40%\">Вес брутто, кг</td><td><b>33</b></td></tr><tr class=\"t1\"><td width=\"40%\">Объём упаковки товара, м<sup>3</sup></td><td><b>0,25585</b></td></tr><tr class=\"t0\"><td width=\"40%\">Длина упаковки товара, м</td><td><b>0,7</b></td></tr><tr class=\"t1\"><td width=\"40%\">Ширина упаковки товара, м</td><td><b>0,425</b></td></tr><tr class=\"t0\"><td width=\"40%\">Высота упаковки товара, м</td><td><b>0,86</b></td></tr><tr class=\"t1\"><td width=\"40%\">Количество на палетте упаковки товара, шт</td><td><b>3</b></td></tr><tr class=\"t0\"><td width=\"40%\">Количество в упаковке упаковки товара, шт</td><td><b>1</b></td></tr><tr class=\"t1\"><td width=\"40%\">Сайт производителя:</td><td><a href=\"http://www.ballu.ru/\">Ballu</a></td></tr></table>",null,32490,"4,6 кВт","","A","520 м3/ч","","","220-240/50,1 В/Гц,Ф","52 дБ","","","","","","28","33","","0,7","0,425","0,86","","","","","","","","","3","1","",""]
["Кондиционер мобильный Ballu BPAC-18 CE серии Smart Pro","Ballu","https://линии-тока.рф/d/1913920/d/13960_26205.png",30862,"Мобильные кондиционеры BALLU серии Smart","<table width=\"100%\"border=\"0\"cellspacing=\"0\"cellpadding=\"4\"class=\"border\"><tr class=\"t0\"><td width=\"40%\">Мощность (охлаждение)</td><td><b>5,5 кВт</b></td></tr><tr class=\"t1\"><td width=\"40%\">Класс энергоэффективности</td><td><b>A</b></td></tr><tr class=\"t0\"><td width=\"40%\">Вентиляция</td><td><b>450 м3/ч</b></td></tr><tr class=\"t1\"><td width=\"40%\">Подключение</td><td><b>220-240/50,1 В/Гц,Ф</b></td></tr><tr class=\"t0\"><td width=\"40%\">Уровень шума</td><td><b>54 дБ</b></td></tr><tr class=\"t1\"><td width=\"40%\">Вес нетто, кг</td><td><b>30</b></td></tr><tr class=\"t0\"><td width=\"40%\">Вес брутто, кг</td><td><b>35</b></td></tr><tr class=\"t1\"><td width=\"40%\">Объём упаковки товара, м<sup>3</sup></td><td><b>0,25284</b></td></tr><tr class=\"t0\"><td width=\"40%\">Длина упаковки товара, м</td><td><b>0,7</b></td></tr><tr class=\"t1\"><td width=\"40%\">Ширина упаковки товара, м</td><td><b>0,42</b></td></tr><tr class=\"t0\"><td width=\"40%\">Высота упаковки товара, м</td><td><b>0,86</b></td></tr><tr class=\"t1\"><td width=\"40%\">Количество на палетте упаковки товара, шт</td><td><b>1</b></td></tr><tr class=\"t0\"><td width=\"40%\">Количество в упаковке упаковки товара, шт</td><td><b>1</b></td></tr><tr class=\"t1\"><td width=\"40%\">Сайт производителя:</td><td><a href=\"http://www.ballu.ru/\">Ballu</a></td></tr></table>",null,38490,"5,5 кВт",{"$f":"IvanPavlov($F11,J$1)","v":""},"A","450 м3/ч","","","220-240/50,1 В/Гц,Ф","54 дБ","","","","","","30","35","","0,7","0,42","0,86","","","","","","","","","1","1","",""]
["Мобильный кондиционер Ballu BPAC-07 CM","Ballu","https://линии-тока.рф/d/1913920/d/20943_23435.png",20943,"Мобильные кондиционеры BALLU серии Smart","<table width=\"100%\"border=\"0\"cellspacing=\"0\"cellpadding=\"4\"class=\"border\"><tr class=\"t0\"><td width=\"40%\">Мощность (охлаждение)</td><td><b>2,051 кВт</b></td></tr><tr class=\"t1\"><td width=\"40%\">Мощность (обогрев)</td><td><b>- кВт</b></td></tr><tr class=\"t0\"><td width=\"40%\">Потребляемая мощность (охлаждение)</td><td><b>0,785 кВт</b></td></tr><tr class=\"t1\"><td width=\"40%\">Потребляемая мощность (нагрев)</td><td><b>- кВт</b></td></tr><tr class=\"t0\"><td width=\"40%\">Класс энергоэффективности</td><td><b>A</b></td></tr><tr class=\"t1\"><td width=\"40%\">Вентиляция</td><td><b>330 м3/ч</b></td></tr><tr class=\"t0\"><td width=\"40%\">Класс защиты (электричество)</td><td><b>I класс</b></td></tr><tr class=\"t1\"><td width=\"40%\">Степень защиты</td><td><b>IPX0</b></td></tr><tr class=\"t0\"><td width=\"40%\">Ток (охлаждение)</td><td><b>3,4 А</b></td></tr><tr class=\"t1\"><td width=\"40%\">Подключение</td><td><b>220-240 В ~ 50 Гц</b></td></tr><tr class=\"t0\"><td width=\"40%\">Уровень шума</td><td><b>45–51 дБ</b></td></tr><tr class=\"t1\"><td width=\"40%\">Хладагент</td><td><b>R410А</b></td></tr><tr class=\"t0\"><td width=\"40%\">Размер (высота)</td><td><b>695 мм</b></td></tr><tr class=\"t1\"><td width=\"40%\">Размер (ширина)</td><td><b>270 мм</b></td></tr><tr class=\"t0\"><td width=\"40%\">Размер (глубина)</td><td><b>480 мм</b></td></tr><tr class=\"t1\"><td width=\"40%\">Вес</td><td><b>25 кг</b></td></tr><tr class=\"t0\"><td width=\"40%\">Гарантия</td><td><b>2 года</b></td></tr><tr class=\"t1\"><td width=\"40%\">Вес нетто, кг</td><td><b>27,5</b></td></tr><tr class=\"t0\"><td width=\"40%\">Вес брутто, кг</td><td><b>31</b></td></tr><tr class=\"t1\"><td width=\"40%\">Объём упаковки товара, м<sup>3</sup></td><td><b>0,1564785</b></td></tr><tr class=\"t0\"><td width=\"40%\">Длина упаковки товара, м</td><td><b>0,54</b></td></tr><tr class=\"t1\"><td width=\"40%\">Ширина упаковки товара, м</td><td><b>0,335</b></td></tr><tr class=\"t0\"><td width=\"40%\">Высота упаковки товара, м</td><td><b>0,865</b></td></tr><tr class=\"t1\"><td width=\"40%\">Сайт производителя:</td><td><a href=\"http://www.ballu.ru/\">Ballu</a></td></tr></table>",null,14290,"2,051 кВт","- кВт","A","330 м3/ч","3,4 А","","220-240 В ~ 50 Гц","45–51 дБ","R410А","","","","","27,5","31","","0,54","0,335","0,865","","0,785 кВт","I класс","IPX0","695 мм","270 мм","480 мм","25 кг","","","- кВт","2 года"]
["Мобильный кондиционер Ballu BPAC-09 CM","Ballu","https://линии-тока.рф/d/1913920/d/20943_23435.png",20941,"Мобильные кондиционеры BALLU серии Smart","<table width=\"100%\"border=\"0\"cellspacing=\"0\"cellpadding=\"4\"class=\"border\"><tr class=\"t0\"><td width=\"40%\">Мощность (охлаждение)</td><td><b>2,638 кВт</b></td></tr><tr class=\"t1\"><td width=\"40%\">Мощность (обогрев)</td><td><b>- кВт</b></td></tr><tr class=\"t0\"><td width=\"40%\">Потребляемая мощность (охлаждение)</td><td><b>0,95 кВт</b></td></tr><tr class=\"t1\"><td width=\"40%\">Потребляемая мощность (нагрев)</td><td><b>- кВт</b></td></tr><tr class=\"t0\"><td width=\"40%\">Класс энергоэффективности</td><td><b>A</b></td></tr><tr class=\"t1\"><td width=\"40%\">Вентиляция</td><td><b>330 м3/ч</b></td></tr><tr class=\"t0\"><td width=\"40%\">Класс защиты (электричество)</td><td><b>I класс</b></td></tr><tr class=\"t1\"><td width=\"40%\">Степень защиты</td><td><b>IPX0</b></td></tr><tr class=\"t0\"><td width=\"40%\">Ток (охлаждение)</td><td><b>4,1 А</b></td></tr><tr class=\"t1\"><td width=\"40%\">Подключение</td><td><b>220-240 В ~ 50 Гц</b></td></tr><tr class=\"t0\"><td width=\"40%\">Уровень шума</td><td><b>45–51 дБ</b></td></tr><tr class=\"t1\"><td width=\"40%\">Хладагент</td><td><b>R410А</b></td></tr><tr class=\"t0\"><td width=\"40%\">Размер (высота)</td><td><b>695 мм</b></td></tr><tr class=\"t1\"><td width=\"40%\">Размер (ширина)</td><td><b>270 мм</b></td></tr><tr class=\"t0\"><td width=\"40%\">Размер (глубина)</td><td><b>480 мм</b></td></tr><tr class=\"t1\"><td width=\"40%\">Вес</td><td><b>26 кг</b></td></tr><tr class=\"t0\"><td width=\"40%\">Гарантия</td><td><b>2 года</b></td></tr><tr class=\"t1\"><td width=\"40%\">Вес нетто, кг</td><td><b>28,5</b></td></tr><tr class=\"t0\"><td width=\"40%\">Вес брутто, кг</td><td><b>32</b></td></tr><tr class=\"t1\"><td width=\"40%\">Объём упаковки товара, м<sup>3</sup></td><td><b>0,1564785</b></td></tr><tr class=\"t0\"><td width=\"40%\">Длина упаковки товара, м</td><td><b>0,54</b></td></tr><tr class=\"t1\"><td width=\"40%\">Ширина упаковки товара, м</td><td><b>0,335</b></td></tr><tr class=\"t0\"><td width=\"40%\">Высота упаковки товара, м</td><td><b>0,865</b></td></tr><tr class=\"t1\"><td width=\"40%\">Сайт производителя:</td><td><a href=\"http://www.ballu.ru/\">Ballu</a></td></tr></table>",null,15290,"2,638 кВт","- кВт","A","330 м3/ч","4,1 А","","220-240 В ~ 50 Гц","45–51 дБ","R410А","","","","","28,5","32","","0,54","0,335","0,865","","0,95 кВт","I класс","IPX0","695 мм","270 мм","480 мм","26 кг","","","- кВт","2 года"]
["Мобильный кондиционер Ballu BPAC-12 CM","Ballu","https://линии-тока.рф/d/1913920/d/20943_23435.png",20942,"Мобильные кондиционеры BALLU серии Smart","<table width=\"100%\"border=\"0\"cellspacing=\"0\"cellpadding=\"4\"class=\"border\"><tr class=\"t0\"><td width=\"40%\">Мощность (охлаждение)</td><td><b>3,224 кВт</b></td></tr><tr class=\"t1\"><td width=\"40%\">Мощность (обогрев)</td><td><b>- кВт</b></td></tr><tr class=\"t0\"><td width=\"40%\">Потребляемая мощность (охлаждение)</td><td><b>1,25 кВт</b></td></tr><tr class=\"t1\"><td width=\"40%\">Потребляемая мощность (нагрев)</td><td><b>- кВт</b></td></tr><tr class=\"t0\"><td width=\"40%\">Класс энергоэффективности</td><td><b>A</b></td></tr><tr class=\"t1\"><td width=\"40%\">Вентиляция</td><td><b>330 м3/ч</b></td></tr><tr class=\"t0\"><td width=\"40%\">Класс защиты (электричество)</td><td><b>I класс</b></td></tr><tr class=\"t1\"><td width=\"40%\">Степень защиты</td><td><b>IPX0</b></td></tr><tr class=\"t0\"><td width=\"40%\">Ток (охлаждение)</td><td><b>5,5 А</b></td></tr><tr class=\"t1\"><td width=\"40%\">Подключение</td><td><b>220-240 В ~ 50 Гц</b></td></tr><tr class=\"t0\"><td width=\"40%\">Уровень шума</td><td><b>45–51 дБ</b></td></tr><tr class=\"t1\"><td width=\"40%\">Хладагент</td><td><b>R410А</b></td></tr><tr class=\"t0\"><td width=\"40%\">Размер (высота)</td><td><b>695 мм</b></td></tr><tr class=\"t1\"><td width=\"40%\">Размер (ширина)</td><td><b>270 мм</b></td></tr><tr class=\"t0\"><td width=\"40%\">Размер (глубина)</td><td><b>480 мм</b></td></tr><tr class=\"t1\"><td width=\"40%\">Вес</td><td><b>28 кг</b></td></tr><tr class=\"t0\"><td width=\"40%\">Гарантия</td><td><b>2 года</b></td></tr><tr class=\"t1\"><td width=\"40%\">Вес нетто, кг</td><td><b>29,5</b></td></tr><tr class=\"t0\"><td width=\"40%\">Вес брутто, кг</td><td><b>33</b></td></tr><tr class=\"t1\"><td width=\"40%\">Объём упаковки товара, м<sup>3</sup></td><td><b>0,1564785</b></td></tr><tr class=\"t0\"><td width=\"40%\">Длина упаковки товара, м</td><td><b>0,54</b></td></tr><tr class=\"t1\"><td width=\"40%\">Ширина упаковки товара, м</td><td><b>0,335</b></td></tr><tr class=\"t0\"><td width=\"40%\">Высота упаковки товара, м</td><td><b>0,865</b></td></tr><tr class=\"t1\"><td width=\"40%\">Сайт производителя:</td><td><a href=\"http://www.ballu.ru/\">Ballu</a></td></tr></table>",null,22045,"3,224 кВт","- кВт","A","330 м3/ч","5,5 А","","220-240 В ~ 50 Гц","45–51 дБ","R410А","","","","","29,5","33","","0,54","0,335","0,865","","1,25 кВт","I класс","IPX0","695 мм","270 мм","480 мм","28 кг","","","- кВт","2 года"]
["Мобильный кондиционер Ballu BPAC-07 CE","Ballu","https://линии-тока.рф/d/1913920/d/20943_26189.png",20946,"Мобильные кондиционеры BALLU серии Smart","<table width=\"100%\"border=\"0\"cellspacing=\"0\"cellpadding=\"4\"class=\"border\"><tr class=\"t0\"><td width=\"40%\">Мощность (охлаждение)</td><td><b>2,051 кВт</b></td></tr><tr class=\"t1\"><td width=\"40%\">Мощность (обогрев)</td><td><b>- кВт</b></td></tr><tr class=\"t0\"><td width=\"40%\">Потребляемая мощность (охлаждение)</td><td><b>0,785 кВт</b></td></tr><tr class=\"t1\"><td width=\"40%\">Потребляемая мощность (нагрев)</td><td><b>- кВт</b></td></tr><tr class=\"t0\"><td width=\"40%\">Класс энергоэффективности</td><td><b>A</b></td></tr><tr class=\"t1\"><td width=\"40%\">Вентиляция</td><td><b>330 м3/ч</b></td></tr><tr class=\"t0\"><td width=\"40%\">Класс защиты (электричество)</td><td><b>I класс</b></td></tr><tr class=\"t1\"><td width=\"40%\">Степень защиты</td><td><b>IPX0</b></td></tr><tr class=\"t0\"><td width=\"40%\">Ток (охлаждение)</td><td><b>3,4 А</b></td></tr><tr class=\"t1\"><td width=\"40%\">Подключение</td><td><b>220-240 В ~ 50 Гц</b></td></tr><tr class=\"t0\"><td width=\"40%\">Уровень шума</td><td><b>45–51 дБ</b></td></tr><tr class=\"t1\"><td width=\"40%\">Хладагент</td><td><b>R410А</b></td></tr><tr class=\"t0\"><td width=\"40%\">Размер (высота)</td><td><b>695 мм</b></td></tr><tr class=\"t1\"><td width=\"40%\">Размер (ширина)</td><td><b>270 мм</b></td></tr><tr class=\"t0\"><td width=\"40%\">Размер (глубина)</td><td><b>480 мм</b></td></tr><tr class=\"t1\"><td width=\"40%\">Вес</td><td><b>25 кг</b></td></tr><tr class=\"t0\"><td width=\"40%\">Гарантия</td><td><b>2 года</b></td></tr><tr class=\"t1\"><td width=\"40%\">Вес нетто, кг</td><td><b>27,5</b></td></tr><tr class=\"t0\"><td width=\"40%\">Вес брутто, кг</td><td><b>31</b></td></tr><tr class=\"t1\"><td width=\"40%\">Объём упаковки товара, м<sup>3</sup></td><td><b>0,1564785</b></td></tr><tr class=\"t0\"><td width=\"40%\">Длина упаковки товара, м</td><td><b>0,54</b></td></tr><tr class=\"t1\"><td width=\"40%\">Ширина упаковки товара, м</td><td><b>0,335</b></td></tr><tr class=\"t0\"><td width=\"40%\">Высота упаковки товара, м</td><td><b>0,865</b></td></tr><tr class=\"t1\"><td width=\"40%\">Сайт производителя:</td><td><a href=\"http://www.ballu.ru/\">Ballu</a></td></tr></table>",null,13990,"2,051 кВт","- кВт","A","330 м3/ч","3,4 А","","220-240 В ~ 50 Гц","45–51 дБ","R410А","","","","","27,5","31","","0,54","0,335","0,865","","0,785 кВт","I класс","IPX0","695 мм","270 мм","480 мм","25 кг","","","- кВт","2 года"]
["Мобильный кондиционер Ballu BPAC-09 CE","Ballu","https://линии-тока.рф/d/1913920/d/20946_26194.png",20944,"Мобильные кондиционеры BALLU серии Smart","<table width=\"100%\"border=\"0\"cellspacing=\"0\"cellpadding=\"4\"class=\"border\"><tr class=\"t0\"><td width=\"40%\">Мощность (охлаждение)</td><td><b>2,638 кВт</b></td></tr><tr class=\"t1\"><td width=\"40%\">Мощность (обогрев)</td><td><b>- кВт</b></td></tr><tr class=\"t0\"><td width=\"40%\">Потребляемая мощность (охлаждение)</td><td><b>0,95 кВт</b></td></tr><tr class=\"t1\"><td width=\"40%\">Потребляемая мощность (нагрев)</td><td><b>- кВт</b></td></tr><tr class=\"t0\"><td width=\"40%\">Класс энергоэффективности</td><td><b>A</b></td></tr><tr class=\"t1\"><td width=\"40%\">Вентиляция</td><td><b>330 м3/ч</b></td></tr><tr class=\"t0\"><td width=\"40%\">Класс защиты (электричество)</td><td><b>I класс</b></td></tr><tr class=\"t1\"><td width=\"40%\">Степень защиты</td><td><b>IPX0</b></td></tr><tr class=\"t0\"><td width=\"40%\">Ток (охлаждение)</td><td><b>4,1 А</b></td></tr><tr class=\"t1\"><td width=\"40%\">Подключение</td><td><b>220-240 В ~ 50 Гц</b></td></tr><tr class=\"t0\"><td width=\"40%\">Уровень шума</td><td><b>45–51 дБ</b></td></tr><tr class=\"t1\"><td width=\"40%\">Хладагент</td><td><b>R410А</b></td></tr><tr class=\"t0\"><td width=\"40%\">Размер (высота)</td><td><b>695 мм</b></td></tr><tr class=\"t1\"><td width=\"40%\">Размер (ширина)</td><td><b>270 мм</b></td></tr><tr class=\"t0\"><td width=\"40%\">Размер (глубина)</td><td><b>480 мм</b></td></tr><tr class=\"t1\"><td width=\"40%\">Вес</td><td><b>26 кг</b></td></tr><tr class=\"t0\"><td width=\"40%\">Гарантия</td><td><b>2 года</b></td></tr><tr class=\"t1\"><td width=\"40%\">Вес нетто, кг</td><td><b>28,5</b></td></tr><tr class=\"t0\"><td width=\"40%\">Вес брутто, кг</td><td><b>32</b></td></tr><tr class=\"t1\"><td width=\"40%\">Объём упаковки товара, м<sup>3</sup></td><td><b>0,1564785</b></td></tr><tr class=\"t0\"><td width=\"40%\">Длина упаковки товара, м</td><td><b>0,54</b></td></tr><tr class=\"t1\"><td width=\"40%\">Ширина упаковки товара, м</td><td><b>0,335</b></td></tr><tr class=\"t0\"><td width=\"40%\">Высота упаковки товара, м</td><td><b>0,865</b></td></tr><tr class=\"t1\"><td width=\"40%\">Сайт производителя:</td><td><a href=\"http://www.ballu.ru/\">Ballu</a></td></tr></table>",null,15990,"2,638 кВт","- кВт","A","330 м3/ч","4,1 А","","220-240 В ~ 50 Гц","45–51 дБ","R410А","","","","","28,5","32","","0,54","0,335","0,865","","0,95 кВт","I класс","IPX0","695 мм","270 мм","480 мм","26 кг","","","- кВт","2 года"]
["Мобильный кондиционер Ballu BPAC-12 CE","Ballu","https://линии-тока.рф/d/1913920/d/20946_26194.png",20945,"Мобильные кондиционеры BALLU серии Smart","<table width=\"100%\"border=\"0\"cellspacing=\"0\"cellpadding=\"4\"class=\"border\"><tr class=\"t0\"><td width=\"40%\">Мощность (охлаждение)</td><td><b>3,224 кВт</b></td></tr><tr class=\"t1\"><td width=\"40%\">Мощность (обогрев)</td><td><b>- кВт</b></td></tr><tr class=\"t0\"><td width=\"40%\">Потребляемая мощность (охлаждение)</td><td><b>1,25 кВт</b></td></tr><tr class=\"t1\"><td width=\"40%\">Потребляемая мощность (нагрев)</td><td><b>- кВт</b></td></tr><tr class=\"t0\"><td width=\"40%\">Класс энергоэффективности</td><td><b>A</b></td></tr><tr class=\"t1\"><td width=\"40%\">Вентиляция</td><td><b>330 м3/ч</b></td></tr><tr class=\"t0\"><td width=\"40%\">Класс защиты (электричество)</td><td><b>I класс</b></td></tr><tr class=\"t1\"><td width=\"40%\">Степень защиты</td><td><b>IPX0</b></td></tr><tr class=\"t0\"><td width=\"40%\">Ток (охлаждение)</td><td><b>5,5 А</b></td></tr><tr class=\"t1\"><td width=\"40%\">Подключение</td><td><b>220-240 В ~ 50 Гц</b></td></tr><tr class=\"t0\"><td width=\"40%\">Уровень шума</td><td><b>45–51 дБ</b></td></tr><tr class=\"t1\"><td width=\"40%\">Хладагент</td><td><b>R410А</b></td></tr><tr class=\"t0\"><td width=\"40%\">Размер (высота)</td><td><b>695 мм</b></td></tr><tr class=\"t1\"><td width=\"40%\">Размер (ширина)</td><td><b>270 мм</b></td></tr><tr class=\"t0\"><td width=\"40%\">Размер (глубина)</td><td><b>480 мм</b></td></tr><tr class=\"t1\"><td width=\"40%\">Вес</td><td><b>28 кг</b></td></tr><tr class=\"t0\"><td width=\"40%\">Гарантия</td><td><b>2 года</b></td></tr><tr class=\"t1\"><td width=\"40%\">Вес нетто, кг</td><td><b>29,5</b></td></tr><tr class=\"t0\"><td width=\"40%\">Вес брутто, кг</td><td><b>33</b></td></tr><tr class=\"t1\"><td width=\"40%\">Объём упаковки товара, м<sup>3</sup></td><td><b>0,1564785</b></td></tr><tr class=\"t0\"><td width=\"40%\">Длина упаковки товара, м</td><td><b>0,54</b></td></tr><tr class=\"t1\"><td width=\"40%\">Ширина упаковки товара, м</td><td><b>0,335</b></td></tr><tr class=\"t0\"><td width=\"40%\">Высота упаковки товара, м</td><td><b>0,865</b></td></tr><tr class=\"t1\"><td width=\"40%\">Сайт производителя:</td><td><a href=\"http://www.ballu.ru/\">Ballu</a></td></tr></table>",null,18990,"3,224 кВт","- кВт","A","330 м3/ч","5,5 А","","220-240 В ~ 50 Гц","45–51 дБ","R410А","","","","","29,5","33","","0,54","0,335","0,865","","1,25 кВт","I класс","IPX0","695 мм","270 мм","480 мм","28 кг","","","- кВт","2 года"]
["Мобильный кондиционер Ballu BPAM-07H","Ballu","https://линии-тока.рф/d/1913920/d/15603_22130.png",15603,"Мобильные кондиционеры BALLU серии Air Master","<table width=\"100%\"border=\"0\"cellspacing=\"0\"cellpadding=\"4\"class=\"border\"><tr class=\"t0\"><td width=\"40%\">Мощность (охлаждение)</td><td><b>2,05 кВт</b></td></tr><tr class=\"t1\"><td width=\"40%\">Мощность (обогрев)</td><td><b>2,05 кВт</b></td></tr><tr class=\"t0\"><td width=\"40%\">Вентиляция</td><td><b>360 м3/ч</b></td></tr><tr class=\"t1\"><td width=\"40%\">Размер (высота)</td><td><b>630 мм</b></td></tr><tr class=\"t0\"><td width=\"40%\">Размер (ширина)</td><td><b>480 мм</b></td></tr><tr class=\"t1\"><td width=\"40%\">Размер (глубина)</td><td><b>300 мм</b></td></tr><tr class=\"t0\"><td width=\"40%\">Вес</td><td><b>24 кг</b></td></tr><tr class=\"t1\"><td width=\"40%\">Гарантия</td><td><b>2 года</b></td></tr><tr class=\"t0\"><td width=\"40%\">Вес нетто, кг</td><td><b>22,3</b></td></tr><tr class=\"t1\"><td width=\"40%\">Вес брутто, кг</td><td><b>24</b></td></tr><tr class=\"t0\"><td width=\"40%\">Объём упаковки товара, м<sup>3</sup></td><td><b>0,121968</b></td></tr><tr class=\"t1\"><td width=\"40%\">Длина упаковки товара, м</td><td><b>0,56</b></td></tr><tr class=\"t0\"><td width=\"40%\">Ширина упаковки товара, м</td><td><b>0,33</b></td></tr><tr class=\"t1\"><td width=\"40%\">Высота упаковки товара, м</td><td><b>0,66</b></td></tr><tr class=\"t0\"><td width=\"40%\">Сайт производителя:</td><td><a href=\"http://www.ballu.ru/\">Ballu</a></td></tr></table>",null,11500,"2,05 кВт","2,05 кВт","","360 м3/ч","","","","","","","","","","22,3","24","","0,56","0,33","0,66","","","","","630 мм","480 мм","300 мм","24 кг","","","","2 года"]
["Мобильный кондиционер Ballu BPAM-09H","Ballu","https://линии-тока.рф/d/1913920/d/15603_22130.png",15604,"Мобильные кондиционеры BALLU серии Air Master","<table width=\"100%\"border=\"0\"cellspacing=\"0\"cellpadding=\"4\"class=\"border\"><tr class=\"t0\"><td width=\"40%\">Мощность (охлаждение)</td><td><b>2,64 кВт</b></td></tr><tr class=\"t1\"><td width=\"40%\">Мощность (обогрев)</td><td><b>2,64 кВт</b></td></tr><tr class=\"t0\"><td width=\"40%\">Вентиляция</td><td><b>360 м3/ч</b></td></tr><tr class=\"t1\"><td width=\"40%\">Размер (высота)</td><td><b>630 мм</b></td></tr><tr class=\"t0\"><td width=\"40%\">Размер (ширина)</td><td><b>480 мм</b></td></tr><tr class=\"t1\"><td width=\"40%\">Размер (глубина)</td><td><b>300 мм</b></td></tr><tr class=\"t0\"><td width=\"40%\">Вес</td><td><b>25 кг</b></td></tr><tr class=\"t1\"><td width=\"40%\">Гарантия</td><td><b>2 года</b></td></tr><tr class=\"t0\"><td width=\"40%\">Вес нетто, кг</td><td><b>25</b></td></tr><tr class=\"t1\"><td width=\"40%\">Вес брутто, кг</td><td><b>27</b></td></tr><tr class=\"t0\"><td width=\"40%\">Объём упаковки товара, м<sup>3</sup></td><td><b>0,121968</b></td></tr><tr class=\"t1\"><td width=\"40%\">Длина упаковки товара, м</td><td><b>0,56</b></td></tr><tr class=\"t0\"><td width=\"40%\">Ширина упаковки товара, м</td><td><b>0,33</b></td></tr><tr class=\"t1\"><td width=\"40%\">Высота упаковки товара, м</td><td><b>0,66</b></td></tr><tr class=\"t0\"><td width=\"40%\">Сайт производителя:</td><td><a href=\"http://www.ballu.ru/\">Ballu</a></td></tr></table>",null,11900,"2,64 кВт","2,64 кВт","","360 м3/ч","","","","","","","","","","25","27","",{"$f":"IvanPavlov($F19,Y$1)","v":"0,56"},"0,33","0,66","","","","","630 мм","480 мм","300 мм","25 кг","","","","2 года"]
["Мобильный кондиционер Ballu BPAM-12HD","Ballu","https://линии-тока.рф/d/1913920/d/15603_22130.png",15605,"Мобильные кондиционеры BALLU серии Air Master","<table width=\"100%\"border=\"0\"cellspacing=\"0\"cellpadding=\"4\"class=\"border\"><tr class=\"t0\"><td width=\"40%\">Мощность (охлаждение)</td><td><b>3,52 кВт</b></td></tr><tr class=\"t1\"><td width=\"40%\">Мощность (обогрев)</td><td><b>3,52 кВт</b></td></tr><tr class=\"t0\"><td width=\"40%\">Вентиляция</td><td><b>420 м3/ч</b></td></tr><tr class=\"t1\"><td width=\"40%\">Размер (высота)</td><td><b>778 мм</b></td></tr><tr class=\"t0\"><td width=\"40%\">Размер (ширина)</td><td><b>505 мм</b></td></tr><tr class=\"t1\"><td width=\"40%\">Размер (глубина)</td><td><b>300 мм</b></td></tr><tr class=\"t0\"><td width=\"40%\">Вес</td><td><b>29,5 кг</b></td></tr><tr class=\"t1\"><td width=\"40%\">Гарантия</td><td><b>2 года</b></td></tr><tr class=\"t0\"><td width=\"40%\">Вес нетто, кг</td><td><b>29,5</b></td></tr><tr class=\"t1\"><td width=\"40%\">Вес брутто, кг</td><td><b>31,5</b></td></tr><tr class=\"t0\"><td width=\"40%\">Объём упаковки товара, м<sup>3</sup></td><td><b>0,1475595</b></td></tr><tr class=\"t1\"><td width=\"40%\">Длина упаковки товара, м</td><td><b>0,55</b></td></tr><tr class=\"t0\"><td width=\"40%\">Ширина упаковки товара, м</td><td><b>0,33</b></td></tr><tr class=\"t1\"><td width=\"40%\">Высота упаковки товара, м</td><td><b>0,813</b></td></tr><tr class=\"t0\"><td width=\"40%\">Сайт производителя:</td><td><a href=\"http://www.ballu.ru/\">Ballu</a></td></tr></table>",null,33382,"3,52 кВт","3,52 кВт","","420 м3/ч","","","","","","","","","","29,5","31,5","","0,55","0,33","0,813","","","","","778 мм","505 мм","300 мм","29,5 кг","","","","2 года"]
[null,null,null,null,null,null,null,null,"","","","","","","","","","","","","","","","","","","","","","","","","","","","","","",""]